[Event "Panevezys Elite 2018"]
[Site "Panevezys"]
[Date "2018.07.01"]
[Round "4.6"]
[White "Ratsma, Midas"]
[Black "Krivonosov, Oleg"]
[Result "1/2-1/2"]
[ECO "D37"]
[WhiteElo "2253"]
[BlackElo "2399"]
[Annotator "ChessBase"]
[PlyCount "130"]
[EventDate "2018.06.29"]
[EventType "swiss"]
[EventRounds "9"]
[EventCountry "LTU"]
[SourceTitle "playchess.com"]
[Source "ChessBase"]
[SourceQuality "1"]
[TimeControl "40/5400+30:1800+30"]

1. d4 d5 2. c4 e6 3. Nc3 Be7 4. Bf4 Nf6 5. Nf3 c5 6. dxc5 Na6 7. e3 Nxc5 8. Qc2 O-O 9. Rd1 Nce4 10. Bd3 Nxc3 11. bxc3 Qa5 12. cxd5 exd5 13. Nd4 Bd7 14. Nf5 Bxf5 15. Bxf5 g6 16. Bd3 Rac8 17. Be5 Nd7 18. Bd4 Bf6 19. Kd2 Bxd4 20. exd4 Nb6 21. Rb1 Nc4+ 22. Bxc4 Rxc4 23. Kd3 Rfc8 24. Rhc1 b5 25. Qd2 Qa6 26. Rb4 Qc6 27. Qb2 a6 28. a4 bxa4 29. Rb8 Kg7 30. Rxc8 Qxc8 31. f3 h5 32. Re1 Qf5+ 33. Ke2 a3 34. Qd2 Qc8 35. Rc1 Qb8 36. g3 h4 37. Kf2 h3 38. Rc2 Qb1 39. g4 Qb8 40. f4 Qb3 41. f5 a2 42. Rb2 Qxc3 43. Qxc3 Rxc3 44. Rxa2 gxf5 45. gxf5 Kf6 46. Ra5 Kxf5 47. Rxd5+ Kf4 48. Ra5 Rc2+ 49. Kg1 Rg2+ 50. Kh1 Rd2 51. Kg1 Rg2+ 52. Kh1 Rd2 53. Kg1 Rxd4 54. Rxa6 f5 55. Ra3 Kg4 56. Rg3+ Kh4 57. Kh1 Rd1+ 58. Rg1 Rd3 59. Rg8 Rd2 60. Rg7 f4 61. Kg1 Rd1+ 62. Kf2 Rh1 63. Kf3 Rxh2 64. Rg4+ Kh5 65. Rxf4 Ra2 1/2-1/2

[Event "Panevezys Elite 2018"]
[Site "Panevezys"]
[Date "2018.07.01"]
[Round "4.7"]
[White "Badelka, Olga"]
[Black "Priyanka Nutakki"]
[Result "0-1"]
[ECO "E46"]
[WhiteElo "2407"]
[BlackElo "2180"]
[Annotator "ChessBase"]
[PlyCount "92"]
[EventDate "2018.06.29"]
[EventType "swiss"]
[EventRounds "9"]
[EventCountry "LTU"]
[SourceTitle "playchess.com"]
[Source "ChessBase"]
[SourceQuality "1"]
[TimeControl "40/5400+30:1800+30"]

1. d4 Nf6 2. c4 e6 3. Nc3 Bb4 4. e3 O-O 5. Nge2 Re8 6. a3 Bf8 7. d5 a5 8. g3 Na6 9. Rb1 exd5 10. cxd5 d6 11. Nd4 Bg4 12. Qc2 c5 13. dxc6 bxc6 14. Bg2 d5 15. O-O Bh5 16. Ra1 Bg6 17. Qd1 Bh5 18. Bf3 Bxf3 19. Qxf3 Qd7 20. Bd2 Nc5 21. Rad1 Nd3 22. Bc1 Ne5 23. Qe2 Qb7 24. f3 Rad8 25. Kg2 Bc5 26. Rfe1 Ba7 27. Qf1 Nc4 28. Re2 Nd6 29. Rc2 Nc4 30. Qf2 c5 31. Ndb5 d4 32. exd4 Ng4 33. Qe2 Rxe2+ 34. Rxe2 Nf6 35. d5 h6 36. d6 Bb8 37. b3 Nb6 38. Be3 Qc6 39. a4 Nbd5 40. Bf4 Nxc3 41. Nxc3 g5 42. Be5 Nd7 43. Nd5 Qa6 44. Ne7+ Kh7 45. Rdd2 Nxe5 46. Rxe5 Bxd6 0-1

[Event "Panevezys Elite 2018"]
[Site "Panevezys"]
[Date "2018.07.01"]
[Round "4.8"]
[White "Van Osch, Mees"]
[Black "Malinin, Yuri"]
[Result "1/2-1/2"]
[ECO "B06"]
[WhiteElo "2324"]
[BlackElo "2176"]
[Annotator "ChessBase"]
[PlyCount "122"]
[EventDate "2018.06.29"]
[EventType "swiss"]
[EventRounds "9"]
[EventCountry "LTU"]
[SourceTitle "playchess.com"]
[Source "ChessBase"]
[SourceQuality "1"]
[TimeControl "40/5400+30:1800+30"]

1. e4 g6 2. d4 Bg7 3. Nc3 d6 4. h4 Nf6 5. Be2 c5 6. dxc5 Qa5 7. Qd3 Nc6 8. cxd6 Nxe4 9. Qxe4 Bxc3+ 10. Kf1 Bf5 11. Qc4 Bg7 12. Nf3 exd6 13. h5 Rc8 14. hxg6 Bxg6 15. Bh6 Bxh6 16. Rxh6 O-O 17. Qh4 Qb4 18. Qxb4 Nxb4 19. c3 Nc6 20. Rd1 Rfd8 21. Nd4 Nxd4 22. Rxd4 Kg7 23. Rh3 Rc5 24. Re3 Kf8 25. f4 Rc7 26. g4 Bb1 27. a3 Re7 28. Kf2 Rxe3 29. Kxe3 f6 30. Rd1 Bg6 31. Bf3 b6 32. Kd4 Rc8 33. Rh1 Rc7 34. Rh2 Re7 35. Kd5 Re3 36. Rf2 Ke7 37. Re2 Rxe2 38. Bxe2 Be8 39. g5 fxg5 40. fxg5 Bg6 41. Bg4 Bd3 42. Kc6 Kf7 43. Kb7 Kg6 44. Kxa7 Kxg5 45. Bf3 b5 46. Kb6 h5 47. Bxh5 Kxh5 48. Kc6 Kg6 49. Kxd6 Kf7 50. b3 Ke8 51. Kc7 Ke7 52. a4 bxa4 53. bxa4 Ke6 54. Kc6 Be4+ 55. Kc5 Kd7 56. Kb6 Kd6 57. c4 Bf3 58. a5 Ba8 59. a6 Bc6 60. c5+ Kd7 61. Ka7 Ke8 1/2-1/2

[Event "Panevezys Elite 2018"]
[Site "Panevezys"]
[Date "2018.07.01"]
[Round "4.11"]
[White "Vicas, Marijus"]
[Black "Stasans, Aivars"]
[Result "1-0"]
[ECO "B20"]
[WhiteElo "2183"]
[BlackElo "2071"]
[Annotator "RC"]
[PlyCount "121"]
[EventDate "2018.06.29"]
[EventType "swiss"]
[EventRounds "9"]
[EventCountry "LTU"]
[SourceTitle "playchess.com"]
[Source "ChessBase"]
[SourceQuality "1"]
[TimeControl "40/5400+30:1800+30"]

1. e4 c5 2. d3 Nc6 3. f4 e6 4. Nf3 Nh6 5. Be2 f5 6. O-O Be7 7. Nbd2 O-O 8. e5 b6 9. h3 Bb7 10. a4 a6 11. c3 Qc7 12. Nb3 Nf7 13. Be3 d5 14. exd6 Bxd6 15. a5 Nxa5 16. Nxa5 bxa5 17. Qa4 Bc6 18. Qxa5 Bxf4 19. Qxc7 Bxc7 20. Bxc5 Rfb8 21. Nd4 Rxb2 22. Ba3 Rxe2 23. Nxe2 Bb6+ 24. Kh1 Rd8 25. d4 Bb5 26. Rfe1 Nd6 27. Nf4 Ne4 28. Nxe6 Rc8 29. Bb4 Nf2+ 30. Kg1 Nd3 31. Red1 Nxb4 32. cxb4 Rc4 33. Rab1 Bc6 34. Rbc1 Bd5 35. Rxc4 Bxc4 36. Nc5 Bb5 37. Ra1 Kf7 38. Kf2 g5 39. Ke3 Ke7 40. Nxa6 Kd6 41. Nc5 Kd5 42. Re1 Kc4 43. Rc1+ Kd5 44. Kd2 Bd8 45. Nb3 Be7 46. Kc3 Bf6 47. Ra1 Ke4 48. Ra5 Be2 49. b5 Bd8 50. b6 Kf4 51. b7 Bc7 52. Ra2 Ke3 53. Nc5 g4 54. hxg4 fxg4 55. Ne6 Bg3 56. Ra5 Bd6 57. Rd5 Bb8 58. Rd8 Bg3 59. b8=Q Bxb8 60. Rxb8 Bf1 61. Rb2 1-0

[Event "Panevezys Elite 2018"]
[Site "Panevezys"]
[Date "2018.07.01"]
[Round "4.12"]
[White "Prigodin, Ruslan"]
[Black "Sinitsina, Anastassia"]
[Result "1-0"]
[ECO "A00"]
[WhiteElo "2036"]
[BlackElo "2101"]
[Annotator "ChessBase"]
[PlyCount "77"]
[EventDate "2018.06.29"]
[EventType "swiss"]
[EventRounds "9"]
[EventCountry "LTU"]
[SourceTitle "playchess.com"]
[Source "ChessBase"]
[SourceQuality "1"]
[TimeControl "40/5400+30:1800+30"]

1. d4 Nf6 2. c4 e6 3. Nc3 c5 4. d5 exd5 5. cxd5 d6 6. e4 g6 7. Bd3 Bg7 8. Nge2 a6 9. a4 O-O 10. O-O Re8 11. Ng3 Nbd7 12. f4 Qc7 13. Be3 Rb8 14. Qf3 b6 15. h3 Bb7 16. Bc2 Nxd5 17. Nxd5 Bxd5 18. Rad1 Bc6 19. Rf2 Rbd8 20. Rfd2 Nf6 21. f5 Nd7 22. Qf1 d5 23. Bf4 Be5 24. Bxe5 Qxe5 25. exd5 Nb8 26. fxg6 hxg6 27. Ne4 f5 28. dxc6 Nxc6 29. Rxd8 Rxd8 30. Rxd8+ Nxd8 31. Nc3 Qd4+ 32. Qf2 Qe5 33. Bb3+ Kg7 34. Bd5 Ne6 35. Bxe6 Qxe6 36. Qe2 Qf6 37. Qxa6 Qd4+ 38. Kh1 Qf4 39. Qe2 1-0

[Event "Panevezys Elite 2018"]
[Site "Panevezys"]
[Date "2018.07.01"]
[Round "4.13"]
[White "Tsiganova, Monika"]
[Black "Kalinowska, Zuzanna"]
[Result "0-1"]
[ECO "A00"]
[WhiteElo "2131"]
[BlackElo "1968"]
[Annotator "ChessBase"]
[PlyCount "114"]
[EventDate "2018.06.29"]
[EventType "swiss"]
[EventRounds "9"]
[EventCountry "LTU"]
[SourceTitle "playchess.com"]
[Source "ChessBase"]
[SourceQuality "1"]
[TimeControl "40/5400+30:1800+30"]

1. d4 Nf6 2. c4 e6 3. g3 Bb4+ 4. Bd2 Qe7 5. Bg2 O-O 6. a3 Bxd2+ 7. Nxd2 d6 8. e4 e5 9. d5 a5 10. Ne2 Na6 11. O-O Bd7 12. Nc3 Rfb8 13. Qe2 a4 14. h3 Nc5 15. Kh2 c6 16. f4 cxd5 17. exd5 Re8 18. Rae1 Qd8 19. Qf3 exf4 20. Rxe8+ Bxe8 21. Qxf4 Qb6 22. Nb5 Bxb5 23. cxb5 Nd3 24. Qf5 Ne5 25. Rc1 Rf8 26. Rc8 Qxb5 27. Qc2 g6 28. Rc7 Nxd5 29. Bxd5 Qxd5 30. Ne4 Nf3+ 31. Kh1 Ng5 32. Re7 Nxe4 33. Qxe4 Qxe4+ 34. Rxe4 b5 35. Rd4 Rc8 36. Rd2 Kf8 37. Kg2 Ke7 38. Kf3 Rc5 39. Rd4 Ke6 40. Re4+ Re5 41. Rb4 h5 42. h4 Rc5 43. Re4+ Kf6 44. Rd4 d5 45. Ke3 Ke5 46. Rf4 f5 47. Rb4 Kd6 48. Rd4 Rc4 49. Rd2 Re4+ 50. Kf3 d4 51. Rc2 Kd5 52. Rc8 d3 53. Rd8+ Kc4 54. Rc8+ Kb3 55. Rc3+ Kxb2 56. Rxd3 Rc4 57. Rd6 Kxa3 0-1

[Event "Panevezys Elite 2018"]
[Site "Panevezys"]
[Date "2018.07.02"]
[Round "5.1"]
[White "Stremavicius, Titas"]
[Black "Vovk, Ilja"]
[Result "1-0"]
[ECO "E80"]
[WhiteElo "2448"]
[BlackElo "2273"]
[Annotator "ChessBase"]
[PlyCount "91"]
[EventDate "2018.06.29"]
[EventType "swiss"]
[EventRounds "9"]
[EventCountry "LTU"]
[SourceTitle "playchess.com"]
[Source "ChessBase"]
[SourceQuality "1"]
[TimeControl "40/5400+30:1800+30"]

1. d4 Nf6 2. c4 g6 3. Nc3 Bg7 4. e4 d6 5. f3 c6 6. Be3 a6 7. a4 a5 8. g4 h5 9. g5 Nfd7 10. f4 Na6 11. Nf3 Nb4 12. Be2 d5 13. O-O dxe4 14. Nh4 e6 15. Nxe4 O-O 16. Rf3 c5 17. dxc5 Bxb2 18. Rb1 Bg7 19. Rg3 Nb8 20. Nd6 Na2 21. Bd4 e5 22. Bxe5 Bxe5 23. fxe5 Nc6 24. Bxh5 Nc3 25. Rxc3 Qxg5+ 26. Ng2 Qxh5 27. Qxh5 gxh5 28. Rg3+ Kh7 29. Rg5 Kh6 30. h4 Nd4 31. Rf1 Bg4 32. Ne3 Nf3+ 33. Rxf3 Bxf3 34. Nef5+ Kh7 35. Rg7+ Kh8 36. Nxf7+ Rxf7 37. Rxf7 Rg8+ 38. Kf2 Bc6 39. Nd6 Rg2+ 40. Ke3 Rg3+ 41. Kf4 Rg4+ 42. Kf5 Kg8 43. e6 Bxa4 44. Rxb7 Rxh4 45. Kg6 Rg4+ 46. Kh6 1-0

[Event "Panevezys Elite 2018"]
[Site "Panevezys"]
[Date "2018.07.02"]
[Round "5.2"]
[White "Kveinys, Aloyzas"]
[Black "Grib, Roman"]
[Result "1-0"]
[ECO "C95"]
[WhiteElo "2537"]
[BlackElo "2445"]
[Annotator "ChessBase"]
[PlyCount "137"]
[EventDate "2018.06.29"]
[EventType "swiss"]
[EventRounds "9"]
[EventCountry "LTU"]
[SourceTitle "playchess.com"]
[Source "ChessBase"]
[SourceQuality "1"]
[TimeControl "40/5400+30:1800+30"]

1. e4 e5 2. Nf3 Nc6 3. Bb5 a6 4. Ba4 Nf6 5. O-O Be7 6. Re1 b5 7. Bb3 O-O 8. c3 d6 9. h3 Nb8 10. d4 Nbd7 11. Nbd2 Bb7 12. Bc2 Re8 13. Nf1 Bf8 14. Ng3 g6 15. a4 Bg7 16. Bd3 c6 17. Bg5 h6 18. Be3 Qc7 19. Qd2 Kh7 20. dxe5 Nxe5 21. Nxe5 dxe5 22. c4 Red8 23. Qc2 b4 24. c5 a5 25. Red1 Qe7 26. Bc4 h5 27. Qb3 h4 28. Nf1 Nxe4 29. Bxf7 Nf6 30. Bg5 Rd4 31. Rxd4 exd4 32. Nd2 Rf8 33. Bc4 Qxc5 34. Bxh4 Qh5 35. Qg3 c5 36. Re1 Re8 37. Rxe8 Nxe8 38. Bf7 Be5 39. f4 Qf5 40. Bxg6+ Qxg6 41. Qxg6+ Kxg6 42. fxe5 Bd5 43. b3 Ng7 44. Bd8 Ne6 45. Bxa5 Kf5 46. Bb6 Kxe5 47. Kf2 d3 48. Ke3 Bxg2 49. h4 Kd5 50. h5 Bh3 51. h6 Bf5 52. a5 Kc6 53. Nc4 d2 54. Nxd2 Nd4 55. Kf4 Bh7 56. Ke5 Kb5 57. Kf6 Bc2 58. Bc7 Bd3 59. Be5 Nc6 60. Nc4 Ka6 61. Bd6 Nd4 62. Ne5 Bh7 63. Bxc5 Nxb3 64. Bxb4 Nd4 65. Ng6 Ne6 66. Bc3 Kb5 67. Ne7 Nc5 68. Bd4 Nb3 69. Be3 1-0

[Event "Panevezys Elite 2018"]
[Site "Panevezys"]
[Date "2018.07.02"]
[Round "5.3"]
[White "Malinin, Yuri"]
[Black "Starostits, Ilmars"]
[Result "0-1"]
[ECO "A06"]
[WhiteElo "2176"]
[BlackElo "2449"]
[Annotator "ChessBase"]
[PlyCount "98"]
[EventDate "2018.06.29"]
[EventType "swiss"]
[EventRounds "9"]
[EventCountry "LTU"]
[SourceTitle "playchess.com"]
[Source "ChessBase"]
[SourceQuality "1"]
[TimeControl "40/5400+30:1800+30"]

1. Nf3 d5 2. e3 g6 3. c4 Nf6 4. b3 Bg7 5. Bb2 c6 6. Be2 O-O 7. O-O a5 8. Nc3 Bf5 9. Nd4 Bd7 10. f4 c5 11. Nf3 d4 12. exd4 cxd4 13. Nb1 Nh5 14. Ne1 Qb6 15. d3 Nf6 16. Nd2 Nc6 17. a3 Bh6 18. Kh1 Qc7 19. g3 Bh3 20. Ng2 Bg7 21. Bf3 h5 22. Ne4 Ng4 23. Bc1 Ne3 24. Bxe3 dxe3 25. Ra2 Nd4 26. Re1 Nxf3 27. Qxf3 Qb6 28. Nxe3 Qxb3 29. Rf2 Qxd3 30. Ng5 Bc8 31. Nd5 Qxf3+ 32. Nxf3 e6 33. Nb6 Ra6 34. Rb1 e5 35. Nxe5 Bf5 36. Rb5 Be4+ 37. Kg1 Bc6 38. Rb1 Rd8 39. Re2 Bf8 40. Nxc6 bxc6 41. Na4 Bxa3 42. Rb7 Raa8 43. f5 Rdb8 44. Rd7 Rb4 45. fxg6 Rxa4 46. gxf7+ Kf8 47. Re6 Rxc4 48. Rh6 Bb2 49. h3 a4 0-1

[Event "Panevezys Elite 2018"]
[Site "Panevezys"]
[Date "2018.07.02"]
[Round "5.4"]
[White "Laurusas, Tomas"]
[Black "Bjerre, Jonas Buhl"]
[Result "1-0"]
[ECO "E11"]
[WhiteElo "2465"]
[BlackElo "2436"]
[Annotator "ChessBase"]
[PlyCount "55"]
[EventDate "2018.06.29"]
[EventType "swiss"]
[EventRounds "9"]
[EventCountry "LTU"]
[SourceTitle "playchess.com"]
[Source "ChessBase"]
[SourceQuality "1"]
[TimeControl "40/5400+30:1800+30"]

1. d4 Nf6 2. c4 e6 3. Nf3 Bb4+ 4. Bd2 a5 5. g3 b6 6. Bg2 Bb7 7. O-O O-O 8. Bg5 Be7 9. Qc2 Be4 10. Qc1 Bb7 11. Rd1 h6 12. Bxf6 Bxf6 13. Nc3 d6 14. Qc2 g6 15. h4 h5 16. e4 Bg7 17. e5 dxe5 18. Nxe5 Qc8 19. f4 Bxg2 20. Qxg2 Nd7 21. Qc6 Bxe5 22. fxe5 Rb8 23. Rf1 Qd8 24. Ne4 Kg7 25. Rf4 b5 26. Ng5 Qe7 27. Raf1 Rb6 28. Qxc7 1-0

[Event "Panevezys Elite 2018"]
[Site "Panevezys"]
[Date "2018.07.02"]
[Round "5.5"]
[White "Krivonosov, Oleg"]
[Black "Harutjunyan, Gevorg"]
[Result "0-1"]
[ECO "E91"]
[WhiteElo "2399"]
[BlackElo "2418"]
[Annotator "ChessBase"]
[PlyCount "136"]
[EventDate "2018.06.29"]
[EventType "swiss"]
[EventRounds "9"]
[EventCountry "LTU"]
[SourceTitle "playchess.com"]
[Source "ChessBase"]
[SourceQuality "1"]
[TimeControl "40/5400+30:1800+30"]

1. Nf3 Nf6 2. c4 g6 3. Nc3 Bg7 4. e4 d6 5. d4 O-O 6. Be2 Na6 7. O-O e5 8. Be3 Ng4 9. Bg5 Qe8 10. Re1 exd4 11. Nxd4 Qe5 12. Bxg4 Qxg5 13. Bxc8 Raxc8 14. Nf3 Qa5 15. Qd5 Qb4 16. Qb5 Rfe8 17. Rad1 Qxb5 18. cxb5 Nc5 19. Nd4 f5 20. f3 fxe4 21. fxe4 Re7 22. b4 Nd7 23. Nd5 Ree8 24. Re2 c5 25. bxc6 bxc6 26. Nf4 Be5 27. Nh3 c5 28. bxc5 dxc5 29. Nf3 Nb6 30. Nxe5 Rxe5 31. Nf2 c4 32. Ng4 Re6 33. e5 Kg7 34. a4 Rc5 35. Rd6 Re7 36. e6 c3 37. Rc2 Rd5 38. Rc6 Nxa4 39. Rc4 Rd2 40. Rc1 Ra2 41. Rc6 Re2 42. Rc4 R2xe6 43. Rxa4 Re1+ 44. Rxe1 Rxe1+ 45. Kf2 c2 46. Rxa7+ Kf8 47. Kxe1 c1=Q+ 48. Ke2 Qc4+ 49. Kf3 Qd5+ 50. Kg3 Qd3+ 51. Kh4 h5 52. Ra4 hxg4 53. Rf4+ Kg7 54. Kxg4 Qe2+ 55. Kg3 Qe5 56. h4 Kh6 57. Kf3 Qd5+ 58. Kf2 Qd2+ 59. Kf3 Qe1 60. Kg4 Qh1 61. g3 Qg2 62. Rf6 Qe4+ 63. Kh3 Kh5 64. Kh2 Kg4 65. Rf2 Qe5 66. Rg2 Qc7 67. Rg1 g5 68. hxg5 Qh7+ 0-1

[Event "Panevezys Elite 2018"]
[Site "Panevezys"]
[Date "2018.07.02"]
[Round "5.6"]
[White "Maryasin, Boris"]
[Black "Ratsma, Midas"]
[Result "0-1"]
[ECO "B12"]
[WhiteElo "2304"]
[BlackElo "2253"]
[Annotator "ChessBase"]
[PlyCount "68"]
[EventDate "2018.06.29"]
[EventType "swiss"]
[EventRounds "9"]
[EventCountry "LTU"]
[SourceTitle "playchess.com"]
[Source "ChessBase"]
[SourceQuality "1"]
[TimeControl "40/5400+30:1800+30"]

1. e4 c6 2. d4 d5 3. e5 c5 4. dxc5 e6 5. Qg4 h5 6. Qg3 Nd7 7. b4 a5 8. c3 Qc7 9. Nf3 axb4 10. cxb4 b6 11. Be3 bxc5 12. bxc5 Ne7 13. Bd3 Ba6 14. Bxa6 Qa5+ 15. Nbd2 Qxa6 16. Nb3 Rb8 17. Kd2 Nf5 18. Qf4 Nxc5 19. Bxc5 Bxc5 20. Nxc5 Qa5+ 21. Ke2 Rb2+ 22. Nd2 Rb4 23. Nde4 Qb5+ 24. Kd1 dxe4 25. Nb3 O-O 26. Qd2 Qb6 27. Ke1 Rd8 28. Qc3 e3 29. f3 Ra8 30. Ke2 Rba4 31. g4 Qb5+ 32. Ke1 hxg4 33. fxg4 Rxg4 34. Qc5 Qxb3 0-1

[Event "Panevezys Elite 2018"]
[Site "Panevezys"]
[Date "2018.07.02"]
[Round "5.7"]
[White "Brazdzionis, Andrius"]
[Black "Parligras, Cosmin"]
[Result "1/2-1/2"]
[ECO "E12"]
[WhiteElo "2252"]
[BlackElo "2231"]
[Annotator "ChessBase"]
[PlyCount "42"]
[EventDate "2018.06.29"]
[EventType "swiss"]
[EventRounds "9"]
[EventCountry "LTU"]
[SourceTitle "playchess.com"]
[Source "ChessBase"]
[SourceQuality "1"]
[TimeControl "40/5400+30:1800+30"]

1. d4 Nf6 2. c4 e6 3. Nf3 b6 4. a3 Bb7 5. Nc3 d5 6. cxd5 exd5 7. g3 a6 8. Bg2 Bd6 9. O-O Nbd7 10. Bf4 Qe7 11. Rc1 O-O 12. Qc2 Rfe8 13. Rfd1 Bxf4 14. gxf4 c5 15. e3 c4 16. Ne5 b5 17. Rd2 Kh8 18. Qf5 Nb6 19. Rcd1 Rad8 20. h3 Rd6 21. Kh2 g6 1/2-1/2

[Event "Panevezys Elite 2018"]
[Site "Panevezys"]
[Date "2018.07.02"]
[Round "5.8"]
[White "Vicas, Marijus"]
[Black "Badelka, Olga"]
[Result "0-1"]
[ECO "B32"]
[WhiteElo "2183"]
[BlackElo "2407"]
[Annotator "ChessBase"]
[PlyCount "66"]
[EventDate "2018.06.29"]
[EventType "swiss"]
[EventRounds "9"]
[EventCountry "LTU"]
[SourceTitle "playchess.com"]
[Source "ChessBase"]
[SourceQuality "1"]
[TimeControl "40/5400+30:1800+30"]

1. e4 c5 2. Nf3 Nc6 3. d4 cxd4 4. Nxd4 Qb6 5. Nb3 Nf6 6. Nc3 e6 7. Bd3 d6 8. Be3 Qc7 9. f4 a6 10. Qf3 b5 11. O-O-O Bb7 12. g4 Nb4 13. g5 Nxd3+ 14. Rxd3 Nd7 15. Bd4 Rc8 16. Rd2 b4 17. Nd5 exd5 18. exd5 Be7 19. Bxg7 Rg8 20. Bd4 Kd8 21. Re1 Re8 22. Qe4 Qc4 23. Qxh7 Bxd5 24. Rde2 Nf8 25. Qf5 Ne6 26. Bb6+ Kd7 27. Rd2 Bf3 28. Qxf7 Rf8 29. Qh7 Qxf4 30. Nc5+ Rxc5 31. Bxc5 Rf7 32. Qh3 Bg4 33. Qe3 Nxc5 0-1

[Event "Panevezys Elite 2018"]
[Site "Panevezys"]
[Date "2018.07.02"]
[Round "5.9"]
[White "Priyanka Nutakki"]
[Black "Berzina, Ilze"]
[Result "1/2-1/2"]
[ECO "B17"]
[WhiteElo "2180"]
[BlackElo "2173"]
[Annotator "ChessBase"]
[PlyCount "42"]
[EventDate "2018.06.29"]
[EventType "swiss"]
[EventRounds "9"]
[EventCountry "LTU"]
[SourceTitle "playchess.com"]
[Source "ChessBase"]
[SourceQuality "1"]
[TimeControl "40/5400+30:1800+30"]

1. e4 c6 2. d4 d5 3. Nd2 dxe4 4. Nxe4 Nd7 5. Ng5 Ngf6 6. Bd3 e6 7. Qe2 h6 8. Nxe6 fxe6 9. Bg6+ Ke7 10. Nf3 Nb6 11. b3 Qc7 12. Ne5 Rg8 13. O-O Bd7 14. Bf4 Qc8 15. Rfe1 Be8 16. Bf5 exf5 17. Nxc6+ Kf7 18. Ne5+ Ke6 19. Nd3+ Kf7 20. Ne5+ Ke6 21. Nd3+ Kf7 1/2-1/2

[Event "Panevezys Elite 2018"]
[Site "Panevezys"]
[Date "2018.07.02"]
[Round "5.10"]
[White "Bekasovs, Rihards"]
[Black "Van Osch, Mees"]
[Result "1/2-1/2"]
[ECO "A04"]
[WhiteElo "2052"]
[BlackElo "2324"]
[Annotator "ChessBase"]
[PlyCount "72"]
[EventDate "2018.06.29"]
[EventType "swiss"]
[EventRounds "9"]
[EventCountry "LTU"]
[SourceTitle "playchess.com"]
[Source "ChessBase"]
[SourceQuality "1"]
[TimeControl "40/5400+30:1800+30"]

1. Nf3 g6 2. g3 Bg7 3. d4 Nf6 4. Bg2 b6 5. O-O Bb7 6. c4 O-O 7. b3 d6 8. Bb2 Nbd7 9. Nc3 Ne4 10. Nxe4 Bxe4 11. Ne1 Bxg2 12. Nxg2 e6 13. Qd2 a5 14. Rfd1 Qe7 15. Rac1 a4 16. Bc3 h5 17. h4 Nf6 18. Qc2 Qd7 19. e4 Rfc8 20. e5 Ng4 21. exd6 Qxd6 22. d5 axb3 23. axb3 Bxc3 24. Qxc3 Rd8 25. Qc2 e5 26. Ra1 Qc5 27. Ne1 e4 28. Rxa8 Rxa8 29. b4 Qe7 30. Ng2 Qxb4 31. Qxe4 Ra2 32. Rf1 Qd2 33. Qe8+ Kg7 34. Nf4 Ra1 35. Ne6+ fxe6 36. Qe7+ Kg8 1/2-1/2

[Event "Panevezys Elite 2018"]
[Site "Panevezys"]
[Date "2018.07.02"]
[Round "5.11"]
[White "Kalinowska, Zuzanna"]
[Black "Prigodin, Ruslan"]
[Result "1/2-1/2"]
[ECO "D10"]
[WhiteElo "1968"]
[BlackElo "2036"]
[Annotator "NA"]
[PlyCount "32"]
[EventDate "2018.06.29"]
[EventType "swiss"]
[EventRounds "9"]
[EventCountry "LTU"]
[SourceTitle "playchess.com"]
[Source "ChessBase"]
[SourceQuality "1"]
[TimeControl "40/5400+30:1800+30"]

1. d4 d5 2. c4 c6 3. Qc2 Nf6 4. e3 a6 5. Nf3 Bg4 6. Nbd2 e6 7. Bd3 dxc4 8. Bxc4 Nbd7 9. b3 Be7 10. Bb2 Rc8 11. Rc1 O-O 12. O-O c5 13. Qb1 Bh5 14. Bd3 Bg6 15. Bxg6 hxg6 16. Rfd1 cxd4 1/2-1/2

[Event "Panevezys Elite 2018"]
[Site "Panevezys"]
[Date "2018.07.02"]
[Round "5.12"]
[White "Juksta, Karolis"]
[Black "Tsiganova, Monika"]
[Result "1-0"]
[ECO "A00"]
[WhiteElo "2187"]
[BlackElo "2131"]
[Annotator "ChessBase"]
[PlyCount "45"]
[EventDate "2018.06.29"]
[EventType "swiss"]
[EventRounds "9"]
[EventCountry "LTU"]
[SourceTitle "playchess.com"]
[Source "ChessBase"]
[SourceQuality "1"]
[TimeControl "40/5400+30:1800+30"]

1. d4 d5 2. c4 e6 3. Nc3 Nf6 4. cxd5 exd5 5. Bg5 Bb4 6. e3 h6 7. Bh4 c5 8. dxc5 Nc6 9. Bd3 g5 10. Bg3 d4 11. exd4 Qxd4 12. Nge2 Qxc5 13. O-O Be6 14. Nb5 O-O-O 15. Rc1 Rxd3 16. Qxd3 Qb6 17. Ned4 Rd8 18. Qf3 Nd5 19. Nxc6 bxc6 20. Rxc6+ Qxc6 21. Nxa7+ Kb7 22. Nxc6 Kxc6 23. a3 1-0

[Event "Panevezys Elite 2018"]
[Site "Panevezys"]
[Date "2018.07.02"]
[Round "5.13"]
[White "Stasans, Aivars"]
[Black "Sinitsina, Anastassia"]
[Result "1-0"]
[ECO "A00"]
[WhiteElo "2071"]
[BlackElo "2101"]
[Annotator "ChessBase"]
[PlyCount "55"]
[EventDate "2018.06.29"]
[EventType "swiss"]
[EventRounds "9"]
[EventCountry "LTU"]
[SourceTitle "playchess.com"]
[Source "ChessBase"]
[SourceQuality "1"]
[TimeControl "40/5400+30:1800+30"]

1. e4 c5 2. Nc3 Nc6 3. Bb5 g6 4. Bxc6 bxc6 5. f4 Bg7 6. Nf3 d5 7. e5 Nh6 8. d3 O-O 9. O-O f6 10. Qe2 Nf5 11. Bd2 Qc7 12. Na4 Nd4 13. Nxd4 cxd4 14. exf6 Bxf6 15. Nc5 Rb8 16. b4 Qd6 17. Rae1 Rf7 18. a3 Bf5 19. g4 Bd7 20. Qg2 Re8 21. Qg3 Bc8 22. f5 Qxg3+ 23. hxg3 gxf5 24. gxf5 Rg7 25. Kh2 Kf7 26. Ne6 Rg4 27. Rf4 Rxf4 28. Bxf4 {time} 1-0

[Event "Panevezys Elite 2018"]
[Site "Panevezys"]
[Date "2018.07.03"]
[Round "6.1"]
[White "Kveinys, Aloyzas"]
[Black "Stremavicius, Titas"]
[Result "1/2-1/2"]
[ECO "D35"]
[WhiteElo "2537"]
[BlackElo "2448"]
[Annotator "ChessBase"]
[PlyCount "22"]
[EventDate "2018.06.29"]
[EventType "swiss"]
[EventRounds "9"]
[EventCountry "LTU"]
[SourceTitle "playchess.com"]
[Source "ChessBase"]
[SourceQuality "1"]
[TimeControl "40/5400+30:1800+30"]

1. d4 d5 2. c4 e6 3. Nc3 Nf6 4. cxd5 exd5 5. Bg5 Nbd7 6. e3 c6 7. Bd3 Be7 8. Nf3 h6 9. Bh4 Nh5 10. Bxe7 Qxe7 11. O-O O-O 1/2-1/2

[Event "Panevezys Elite 2018"]
[Site "Panevezys"]
[Date "2018.07.03"]
[Round "6.2"]
[White "Starostits, Ilmars"]
[Black "Bjerre, Jonas Buhl"]
[Result "1/2-1/2"]
[ECO "B24"]
[WhiteElo "2449"]
[BlackElo "2436"]
[Annotator "ChessBase"]
[PlyCount "21"]
[EventDate "2018.06.29"]
[EventType "swiss"]
[EventRounds "9"]
[EventCountry "LTU"]
[SourceTitle "playchess.com"]
[Source "ChessBase"]
[SourceQuality "1"]
[TimeControl "40/5400+30:1800+30"]

1. e4 c5 2. Nc3 Nc6 3. Bb5 Nd4 4. Bc4 e6 5. Nge2 Nf6 6. O-O a6 7. e5 d5 8. exf6 dxc4 9. fxg7 Bxg7 10. d3 cxd3 11. cxd3 1/2-1/2

[Event "Panevezys Elite 2018"]
[Site "Panevezys"]
[Date "2018.07.03"]
[Round "6.3"]
[White "Harutjunyan, Gevorg"]
[Black "Laurusas, Tomas"]
[Result "1-0"]
[ECO "B43"]
[WhiteElo "2418"]
[BlackElo "2465"]
[Annotator "ChessBase"]
[PlyCount "69"]
[EventDate "2018.06.29"]
[EventType "swiss"]
[EventRounds "9"]
[EventCountry "LTU"]
[SourceTitle "playchess.com"]
[Source "ChessBase"]
[SourceQuality "1"]
[TimeControl "40/5400+30:1800+30"]

1. e4 c5 2. Nf3 e6 3. d4 cxd4 4. Nxd4 a6 5. Nc3 Qc7 6. Bd3 Nf6 7. Qe2 d6 8. f4 Nbd7 9. g4 Nc5 10. g5 Nfd7 11. Bd2 b5 12. a3 Bb7 13. O-O-O Be7 14. Kb1 Nb6 15. f5 e5 16. Nb3 Rc8 17. Rhf1 Ncd7 18. Qg2 Qb8 19. Na5 Ba8 20. Nd5 Bd8 21. f6 g6 22. Ne7 Rc7 23. Bb4 Nc5 24. Nd5 Rc8 25. Be2 h5 26. gxh6 Rxh6 27. Bg4 Nbd7 28. h4 Rxh4 29. Rh1 Rxh1 30. Qxh1 Bxd5 31. Qh8+ Nf8 32. exd5 Ne4 33. Nc6 Qb7 34. Nxd8 Rxd8 35. Rh1 1-0